bitfinex-derivatives/quotes_ETHF0:USTF0_20250624
["timestamp","ask_amount","ask_price","bid_price","bid_amount"]
[1750798258586,0.65419,2444.7,2444.6,1.3969]
[1750798258885,0.65415,2444.9,2444.6,2.92112]
[1750798259291,25.544,2444.9,2444.6,2.2669]
[1750798259485,0.65418,2444.8,2444.6,2.2669]
[1750798259688,0.65419,2444.7,2444.6,1.3969]
[1750798259887,25.544,2444.9,2444.6,1.3969]
[1750798260086,25.544,2444.9,2444.6,2.0511]
[1750798260287,0.65424,2444.6,2444.3,1.30689]
[1750798260496,25.544,2444.9,2444.4,1.3969]
[1750798260497,6.574,2444.8,2444.4,1.3969]
[1750798260692,0.65424,2444.6,2444.4,1.7069]
[1750798260887,0.65424,2444.6,2444.4,2.36117]
[1750798261097,0.65424,2444.6,2444.4,1.7069]
[1750798261290,0.65424,2444.6,2444.4,2.36116]
[1750798261692,0.65424,2444.6,2444.4,0.96426]
[1750798261997,0.6543,2444.3,2443.6,4.84402]
[1750798262185,3.2078,2444.5,2443.6,4.84402]
[1750798262186,32.121,2444.4,2444.0,1.3895]
[1750798262382,0.65443,2443.8,2443.7,0.7209]
[1750798262586,32.121,2443.9,2443.3,3.8687]
[1750798262788,0.65449,2443.6,2443.4,1.3895]
[1750798262991,0.65449,2443.6,2443.4,3.77404]
[1750798263194,0.65449,2443.6,2443.4,3.1195]
[1750798263394,32.77542,2443.9,2443.4,3.1195]
[1750798263702,32.14,2443.9,2443.7,0.65446]
[1750798264004,32.7944,2443.9,2443.8,1.36]
[1750798264698,32.14,2443.9,2443.8,1.36]
[1750798264897,3.2078,2444.1,2443.8,1.36]
[1750798265093,47.112,2444.7,2444.0,3.2078]
[1750798265289,32.16,2444.6,2444.3,0.65429]
[1750798265490,32.16,2444.6,2444.5,0.65424]
[1750798265790,32.16,2444.6,2444.4,1.36]
[1750798265791,32.16,2444.6,2444.4,2.01426]
[1750798265997,5.73469679,2444.5,2444.1,0.6666]
[1750798266198,8.94249679,2444.2,2443.8,1.36]
[1750798266499,32.182,2444.1,2443.7,0.65444]
[1750798266693,0.65442,2443.9,2443.7,0.65444]
[1750798267095,0.65443,2443.8,2443.6,0.65447]
[1750798267290,32.182,2444.1,2443.5,0.65449]
[1750798267496,0.65445,2443.8,2443.6,0.65448]
[1750798267703,0.65445,2443.8,2443.6,2.05538]
[1750798268011,3.86222,2443.9,2443.6,3.19]
[1750798268202,25.598,2443.8,2443.7,2.05535]
[1750798268398,26.25245,2443.8,2443.6,0.65447]
[1750798268594,25.598,2443.8,2443.6,1.78447]
[1750798268795,25.598,2443.8,2443.7,0.65446]
[1750798269196,25.598,2443.8,2443.7,6.88446]
[1750798269997,25.598,2443.8,2443.7,0.65446]
[1750798270202,3.2078,2444.2,2443.7,7.6978]
[1750798270502,29.47914,2444.2,2444.1,0.65435]
[1750798270700,28.8248,2444.2,2444.1,0.65435]
[1750798271099,28.8248,2444.2,2444.1,7.15435]
[1750798271398,28.8248,2444.2,2444.1,0.65435]
[1750798271897,29.47912,2444.2,2444.1,0.65435]
[1750798272096,28.8248,2444.2,2444.1,0.65435]
[1750798273093,6.576,2444.4,2444.3,0.6543]
[1750798273402,26.25427,2444.4,2444.3,0.6543]
[1750798273604,25.6,2444.4,2444.3,0.6543]
[1750798274995,0.6543,2444.3,2444.2,2.02091]
[1750798276006,26.25428,2444.4,2444.3,0.6543]
[1750798276204,25.6,2444.4,2444.3,1.9865]
[1750798276602,26.25427,2444.4,2444.3,1.9865]
[1750798277902,26.24027,2444.4,2444.3,1.3322]
[1750798278101,26.24027,2444.4,2444.3,1.9865]
[1750798278806,9.7848,2444.7,2444.3,1.9865]
[1750798278807,0.65426,2444.5,2444.3,1.98648]
[1750798279010,25.571,2444.4,2444.3,1.98648]
[1750798279207,25.571,2444.4,2444.2,0.65431]
[1750798279710,0.6543,2444.3,2444.2,0.65431]
[1750798283214,26.22529,2444.4,2444.3,0.6543]
[1750798284212,0.65432,2444.2,2444.1,2.75173]
[1750798284407,0.65432,2444.2,2444.1,2.91173]
[1750798284713,0.65432,2444.2,2444.1,2.2574]
[1750798285012,0.65432,2444.2,2444.1,2.91175]
[1750798286501,25.571,2444.4,2444.1,2.2574]
[1750798286707,26.16529,2444.4,2444.3,0.65429]
[1750798287512,0.65431,2444.3,2444.2,0.6543]
[1750798287712,0.65431,2444.3,2444.2,0.7543]
[1750798287911,26.16529,2444.4,2444.3,0.6543]
[1750798288212,26.16529,2444.4,2444.3,2.0544]
[1750798288412,26.16529,2444.4,2444.3,1.4001]
[1750798288910,26.16529,2444.4,2444.3,2.0544]
[1750798290914,25.511,2444.4,2444.3,2.0544]
[1750798292213,26.16527,2444.4,2444.3,2.0544]
[1750798292614,25.511,2444.4,2444.3,2.0544]
[1750798294116,0.65427,2444.4,2444.3,2.0544]
[1750798294304,0.65426,2444.5,2444.4,0.65426]
[1750798294513,26.12026,2444.5,2444.4,0.65426]
[1750798294704,26.12026,2444.5,2444.4,1.32766]
[1750798295917,25.466,2444.5,2444.4,1.32766]
[1750798296519,26.12024,2444.5,2444.4,1.32766]
[1750798296719,26.12024,2444.5,2444.4,2.70706]
[1750798297817,0.6543,2444.3,2444.2,1.60830171]
[1750798298023,0.6543,2444.3,2444.2,1.52432]
[1750798298213,0.6543,2444.3,2444.2,6.12132]
[1750798298410,0.6543,2444.3,2444.2,7.72962171]
[1750798298919,26.09329,2444.4,2444.3,0.6543]
[1750798299418,26.09329,2444.4,2444.3,3.65180171]
[1750798299616,0.65426,2444.5,2444.4,0.65426]
[1750798300513,0.65426,2444.5,2444.4,2.26256171]
[1750798304221,0.65426,2444.5,2444.4,3.61986171]
[1750798304418,25.394,2444.6,2444.5,0.65424]
[1750798304620,0.65412,2445.0,2444.9,0.65411]
[1750798304824,0.65411,2445.1,2445.0,0.6541]
[1750798305132,29.95967,2445.2,2445.1,0.65408]
[1750798305319,0.65414,2444.9,2444.8,3.6312622]
[1750798305621,0.65414,2444.9,2444.8,2.01144]
[1750798306223,0.65414,2444.9,2444.7,2.9696222]
[1750798306224,0.65416,2444.8,2444.7,2.9729022]
[1750798307429,0.65415,2444.9,2444.8,0.65414]
[1750798307724,26.0531,2445.1,2445.0,0.65411]
[1750798308527,0.6541,2445.1,2445.0,0.65411]
[1750798309130,3.2078,2445.2,2445.1,0.65408]
[1750798309327,3.86186,2445.2,2445.1,0.65408]
[1750798309520,32.82105,2445.3,2445.2,0.65406]
[1750798309727,0.65402,2445.4,2445.3,0.65402]
[1750798310025,0.65399,2445.5,2445.4,0.65399]
[1750798310229,0.65397,2445.6,2445.5,0.65397]
[1750798310422,0.65398,2445.5,2445.4,0.65398]
[1750798311129,3.9096,2445.9,2445.4,3.03608777]
[1750798311324,0.65391,2445.8,2445.7,0.65392]
[1750798311626,0.65393,2445.7,2445.6,0.65393]
[1750798311824,0.6539,2445.8,2445.7,0.6539]
[1750798312025,0.65392,2445.7,2445.6,0.6966]
[1750798312424,0.65392,2445.7,2445.6,1.35055]
[1750798312620,29.94848,2445.9,2445.8,0.6539]
[1750798312822,0.6539,2445.8,2445.7,1.4205]
[1750798313228,3.86169,2445.9,2445.7,1.4205]
[1750798313534,3.2078,2446.3,2446.0,0.65382]
[1750798313722,0.6538,2446.2,2445.8,3.74808777]
[1750798314031,3.2078,2446.3,2446.2,0.65379]
[1750798314331,26.1078,2446.6,2446.2,3.48608777]
[1750798314532,0.65375,2446.4,2446.3,0.65376]
[1750798314736,0.65371,2446.5,2446.3,0.65375]
[1750798314937,0.65371,2446.5,2446.3,2.07425]
[1750798315128,3.2078,2446.7,2446.3,1.4205]
[1750798315436,0.65368,2446.6,2446.5,0.6537]
[1750798315634,0.65368,2446.6,2446.5,1.4008]
[1750798315834,0.65368,2446.6,2446.5,2.05451]
[1750798316131,0.65368,2446.6,2446.5,1.4008]
[1750798316430,0.65379,2446.2,2446.1,0.7153]
[1750798316729,0.65379,2446.2,2446.1,2.2253]
[1750798317129,0.65379,2446.2,2446.1,1.51]
[1750798317727,36.9173,2446.2,2445.7,3.2078]
[1750798317931,0.6539,2445.8,2445.7,1.93]
[1750798319239,0.6939,2446.0,2445.7,1.93]
[1750798319436,26.04885,2446.0,2445.8,1.96958]
[1750798319739,0.65387,2445.9,2445.8,2.1257]
[1750798320330,0.65387,2445.9,2445.8,0.81]
[1750798320545,0.65398,2445.5,2445.4,3.2078]
[1750798320737,0.65398,2445.5,2445.4,4.5278]
[1750798321540,0.65396,2445.6,2445.4,5.1818]
[1750798321839,0.65398,2445.5,2445.4,5.9634]
[1750798322646,0.65398,2445.5,2445.4,4.5278]
[1750798323144,0.65398,2445.5,2445.4,1.32]
[1750798324643,0.65398,2445.5,2445.1,3.2078]
[1750798324644,0.65406,2445.2,2445.1,3.2078]
[1750798326449,1.34335,2445.3,2445.1,3.86187]
[1750798326940,0.65406,2445.2,2445.1,3.86187]
[1750798327848,0.65406,2445.2,2445.1,3.2078]
[1750798329949,0.65406,2445.2,2445.1,3.86188]
[1750798330146,0.65406,2445.2,2445.1,3.2078]
[1750798331254,0.65406,2445.2,2445.1,3.86188]
[1750798332147,33.39635,2445.3,2445.2,0.65406]
[1750798333445,0.65411,2445.0,2444.9,1.3744]
[1750798333651,0.65411,2445.0,2444.9,3.40854]
[1750798334551,0.65411,2445.0,2444.9,2.7544]
[1750798334742,0.65411,2445.0,2444.9,3.40854]
[1750798334944,25.97511,2445.0,2444.9,1.38]
[1750798335244,0.65419,2444.7,2444.6,0.65419]
[1750798335450,0.65419,2444.7,2444.6,2.04409]
[1750798335851,0.65418,2444.8,2444.7,0.65418]
[1750798336351,0.65419,2444.7,2444.6,2.0441]
[1750798337650,0.65417,2444.8,2444.7,0.65417]
[1750798337856,0.65416,2444.9,2444.8,0.65416]
[1750798338049,0.65417,2444.8,2444.7,0.65417]
[1750798339256,0.65419,2444.7,2444.6,1.3899]
[1750798339560,0.65422,2444.6,2444.5,0.6662]
[1750798339753,0.65421,2444.7,2444.6,0.65421]
[1750798339960,0.65418,2444.8,2444.7,0.65418]
[1750798340257,25.97018,2444.8,2444.7,0.65418]
[1750798340657,0.65418,2444.8,2444.7,0.65418]
[1750798340859,25.97018,2444.8,2444.7,0.65418]
[1750798341362,25.97018,2444.8,2444.7,0.65419]
[1750798341856,25.316,2444.8,2444.7,0.65419]
[1750798342260,0.65414,2444.9,2444.8,0.65416]
[1750798342953,0.65414,2444.9,2444.8,2.72066]
[1750798343252,25.97213,2445.0,2444.9,0.65414]
[1750798343449,7.3101,2445.1,2445.0,0.65411]
[1750798343648,32.6261,2445.1,2445.0,0.65411]
[1750798344260,0.65411,2445.0,2444.9,2.03502]
[1750798344456,0.65411,2445.0,2444.9,1.3809]
[1750798345160,31.972,2445.1,2444.8,0.6856]
[1750798345357,0.65414,2444.9,2444.8,0.6856]
[1750798345556,0.65414,2444.9,2444.8,1.33976]
[1750798345854,0.65413,2445.0,2444.9,0.65413]
[1750798346054,0.65413,2445.0,2444.9,2.08693]
[1750798346661,3.2078,2445.6,2444.9,15.4576057]
[1750798346959,3.86176,2445.6,2445.5,0.65398]
[1750798347556,3.2078,2445.6,2445.5,0.65398]
[1750798348059,3.2078,2445.6,2445.5,2.08678]
[1750798348453,7.31092,2445.8,2445.7,0.65392]
[1750798348652,32.66592,2445.8,2445.7,0.65392]
[1750798348852,0.65395,2445.6,2445.5,2.08676]
[1750798349154,26.00294,2445.7,2445.6,0.65395]
[1750798349355,26.00294,2445.7,2445.6,2.02895]
[1750798349563,25.349,2445.7,2445.6,2.02895]
[1750798349965,25.349,2445.7,2445.6,1.375]
[1750798349966,26.00292,2445.7,2445.6,1.375]
[1750798350158,3.2078,2445.9,2445.6,1.375]
[1750798350354,0.65392,2445.7,2445.6,2.02894]
[1750798350663,0.65391,2445.8,2445.6,2.02894]
[1750798350866,0.65391,2445.8,2445.6,1.375]
[1750798351162,0.65392,2445.7,2445.6,1.375]
[1750798351768,0.65395,2445.6,2445.5,0.65396]
[1750798352073,25.98194,2445.7,2445.3,1.3785]
[1750798352256,25.98194,2445.7,2445.5,0.65396]
[1750798352664,0.65395,2445.6,2445.5,0.65396]
[1750798353162,25.328,2445.7,2445.3,1.3785]
[1750798353163,25.328,2445.7,2445.6,0.65395]
[1750798354573,25.98192,2445.7,2445.6,0.65395]
[1750798354864,0.65395,2445.6,2445.5,0.65396]
[1750798355565,25.328,2445.7,2445.4,1.96808]
[1750798355758,25.328,2445.7,2445.5,0.65397]
[1750798355954,0.65397,2445.6,2445.5,1.3311]
[1750798356570,0.65397,2445.6,2445.5,1.98508]
[1750798359965,0.65397,2445.6,2445.5,1.3311]
[1750798360354,0.65397,2445.6,2445.5,1.98508]
[1750798361367,0.65397,2445.6,2445.5,1.3311]
[1750798361768,0.65397,2445.6,2445.5,1.98508]
[1750798362069,25.98194,2445.7,2445.6,0.65395]
[1750798363466,0.65395,2445.6,2445.5,1.98506]
[1750798364172,0.6539,2445.8,2445.7,0.65391]
[1750798364363,28.4678,2445.9,2445.7,0.65391]
[1750798364364,29.12168,2445.9,2445.7,0.65391]
[1750798364671,29.12168,2445.9,2445.8,0.6539]
[1750798365068,29.12168,2445.9,2445.6,1.63488]
[1750798365069,25.245,2445.9,2445.6,1.63488]
[1750798365265,0.65385,2446.0,2445.7,1.4192]
[1750798365575,3.2078,2446.3,2446.2,0.65379]
[1750798365769,29.11256,2446.3,2446.2,0.65379]
[1750798365977,0.65382,2446.1,2446.0,0.65382]
[1750798368674,0.65384,2446.0,2445.9,2.72675]
[1750798368868,0.65383,2446.1,2445.9,2.72675]
[1750798369064,0.65383,2446.1,2446.0,0.65384]
[1750798370163,25.25,2446.2,2446.1,0.65382]
[1750798370469,25.90379,2446.2,2446.1,0.65382]
[1750798371468,0.65372,2446.5,2445.9,3.70754]
[1750798371672,3.2078,2446.6,2446.5,0.65371]
[1750798371972,7.323,2446.7,2446.6,0.65368]
[1750798371973,6.654,2446.7,2446.6,0.65368]
[1750798372475,0.65357,2447.1,2446.9,0.65358]
[1750798372674,25.87957,2447.1,2446.8,3.03057085]
[1750798372874,25.87957,2447.1,2446.9,1.3059]
[1750798373084,25.226,2447.1,2447.0,0.65358]
[1750798373374,1.32254,2447.2,2447.0,0.65356]
[1750798373375,0.669,2447.2,2447.0,0.65356]
[1750798373575,25.234,2447.1,2447.0,0.65356]
[1750798374377,0.65354,2447.2,2447.1,0.65355]
[1750798374579,25.228,2447.2,2447.1,0.65355]
[1750798374779,0.65355,2447.1,2447.0,0.65356]
[1750798375182,25.88154,2447.2,2447.1,0.65355]
[1750798375576,0.65355,2447.1,2446.9,1.95949]
[1750798376281,0.65358,2447.0,2446.9,1.3059]
[1750798376583,0.65363,2446.8,2446.7,0.6605]
[1750798376785,0.65368,2446.6,2446.5,1.37219]
[1750798377081,0.65367,2446.7,2446.6,0.65368]
[1750798377281,0.65365,2446.8,2446.6,0.65368]
[1750798377482,1.33862,2446.9,2446.7,0.65366]
[1750798377683,0.685,2446.9,2446.7,0.65366]
[1750798377981,0.65363,2446.8,2446.7,0.65366]
[1750798378480,1.33861,2446.9,2446.8,0.65363]
[1750798378782,0.65363,2446.8,2446.7,0.65364]
[1750798379081,0.65363,2446.8,2446.6,0.65368]
[1750798379281,0.65363,2446.8,2446.6,2.07138]
[1750798379482,0.65366,2446.7,2446.6,2.07138]
[1750798380586,0.65366,2446.7,2446.6,1.4177]
[1750798381283,0.65365,2446.8,2446.6,1.4177]
[1750798381581,0.65366,2446.7,2446.6,2.07137]
[1750798382482,0.65364,2446.8,2446.7,0.65365]
[1750798382685,0.65366,2446.7,2446.6,2.07137]
[1750798385575,0.65366,2446.7,2446.6,1.4177]
[1750798385776,0.65366,2446.7,2446.6,2.07138]
[1750798386588,0.65365,2446.8,2446.7,0.65364]
[1750798387182,0.65366,2446.7,2446.6,2.07136]
[1750798387388,0.65366,2446.7,2446.6,1.4177]
[1750798387684,0.65364,2446.8,2446.6,1.4177]
[1750798388085,0.65364,2446.8,2446.7,0.65364]
[1750798388987,0.07115262,2447.1,2446.6,1.4177]
[1750798389189,0.65356,2447.1,2447.0,0.65358]
[1750798389687,0.65354,2447.2,2447.1,0.65355]
[1750798390189,0.65348,2447.4,2447.3,0.65349]
[1750798390487,0.65348,2447.4,2447.3,3.86129]
[1750798390784,0.65346,2447.5,2447.4,0.65346]
[1750798390989,0.65346,2447.5,2447.4,2.07976]
[1750798391493,47.7603,2447.8,2447.7,0.65339]
[1750798391494,0.6593,2447.8,2447.7,0.65339]
[1750798391784,3.2078,2448.0,2447.8,0.65336]
[1750798391987,0.65334,2447.9,2447.8,1.98926]
[1750798392185,3.2078,2448.0,2447.8,1.98926]
[1750798392386,0.65334,2447.9,2447.8,1.3359]
[1750798392588,0.65334,2447.9,2447.8,1.98926]
[1750798392790,3.2078,2448.0,2447.8,1.3359]
[1750798392988,0.65334,2447.9,2447.8,1.3359]
[1750798394885,6.23837085,2448.0,2447.3,3.2078]
[1750798395092,0.65343,2447.6,2447.5,0.65343]
[1750798395288,0.65343,2447.6,2447.5,2.00593]
[1750798396187,6.72582116,2448.0,2447.6,0.65342]
[1750798396393,0.65337,2447.8,2447.7,1.3525]
[1750798397890,0.65335,2447.9,2447.8,0.65336]
[1750798398194,0.65335,2447.9,2447.8,0.6571]
[1750798399096,29.08625252,2448.0,2447.8,0.6571]
[1750798399289,0.65334,2447.9,2447.8,2.73035]
[1750798399598,0.65334,2447.9,2447.8,2.73036]
[1750798399798,28.43292252,2448.0,2447.8,2.077]
[1750798399987,0.07112252,2448.0,2447.9,3.86114]
[1750798400294,47.073,2449.5,2447.9,3.86114]
[1750798400295,34.87857085,2449.5,2448.2,1.63309]
[1750798400483,1.4254,2449.4,2448.8,3.2078]
[1750798400684,0.653,2449.2,2448.9,2.7579]
[1750798400892,0.653,2449.2,2448.9,3.41095]
[1750798401091,0.65303,2449.1,2448.9,2.7579]
[1750798401394,0.65304,2449.0,2448.9,2.7579]
[1750798402094,0.65304,2449.0,2448.9,3.8579]
[1750798402387,0.65304,2449.0,2448.9,2.7579]
[1750798402790,1.63268,2448.9,2447.9,3.89319874]
[1750798402988,0.65324,2448.3,2448.1,5.2786]
[1750798403203,0.65325,2448.3,2448.1,1.4186]
[1750798403796,0.65326,2448.2,2448.1,2.4986]
[1750798404004,0.65326,2448.2,2448.1,4.9086]
[1750798404198,0.65326,2448.2,2448.1,1.4186]
[1750798404905,0.65324,2448.3,2448.1,1.4186]
[1750798405302,6.62,2448.5,2448.1,1.4186]
[1750798405500,0.65326,2448.2,2448.1,3.4686]
[1750798405807,0.65326,2448.2,2448.1,1.4186]
[1750798406004,0.65325,2448.3,2448.1,1.4186]
[1750798406398,0.65326,2448.2,2448.1,1.4186]
[1750798406604,6.62,2448.5,2448.1,1.4186]
[1750798408006,0.65326,2448.2,2448.1,1.4186]
[1750798408907,0.65328,2448.1,2448.0,1.3393]
[1750798409404,0.65328,2448.1,2448.0,2.7299]
[1750798409804,0.65328,2448.1,2448.0,2.0681]
[1750798410003,0.65331,2448.0,2447.9,3.2078]
[1750798410206,0.65331,2448.0,2447.9,3.6278]
[1750798413808,0.65331,2448.0,2447.9,4.28112]
[1750798414009,0.6533,2448.1,2447.9,4.28112]
[1750798414209,0.6533,2448.1,2448.0,1.95341]
[1750798414910,0.6533,2448.1,2448.0,1.3001]
[1750798417108,0.65333,2448.0,2447.8,0.65334]
[1750798417309,0.65333,2448.0,2447.8,3.16934]
[1750798417505,0.65333,2448.0,2447.9,0.65334]
[1750798417707,0.65333,2448.0,2447.9,2.51934]
[1750798418214,0.65331,2448.0,2447.9,2.51932]
[1750798418417,0.6533,2448.1,2448.0,0.65331]
[1750798418617,0.65331,2448.0,2447.9,2.04933]
[1750798418817,0.65331,2448.0,2447.9,2.50933]
[1750798419117,3.2078,2448.3,2447.9,1.856]
[1750798419118,3.9271,2448.3,2447.9,1.856]
[1750798419711,0.65327,2448.2,2448.1,0.65327]
[1750798420016,0.65327,2448.2,2447.9,1.856]
[1750798420017,0.65329,2448.1,2448.0,0.65329]
[1750798420415,0.65327,2448.2,2448.1,0.65327]
[1750798420817,3.9271,2448.3,2447.7,5.5230175]
[1750798421018,0.65334,2447.9,2447.8,2.07944]
[1750798421219,0.65332,2448.0,2447.9,0.65332]
[1750798421420,0.65332,2448.0,2447.9,1.22332]
[1750798421620,0.65332,2448.0,2447.9,2.64942]
[1750798422217,0.65332,2448.0,2447.9,0.57]
[1750798422218,3.86112,2448.0,2447.9,0.57]
[1750798422416,1.63335,2447.9,2447.1,4.24131751]
[1750798422617,0.65352,2447.2,2447.1,3.2078]
[1750798422930,0.6536,2447.0,2446.8,0.65362]
[1750798423114,0.6536,2446.9,2446.8,2.50362]
[1750798423418,0.65359,2447.0,2446.8,3.86732]
[1750798424921,0.6536,2446.9,2446.8,3.86732]
[1750798425320,6.619,2447.2,2446.8,3.2137]
[1750798425520,0.6536,2446.9,2446.8,1.85]
[1750798425817,9.8268,2447.2,2446.4,3.2078]
[1750798425818,0.6537,2446.6,2446.4,4.5581]
[1750798426018,0.6537,2446.6,2446.4,6.8981]
[1750798426417,0.65367,2446.7,2446.5,0.65371]
[1750798426722,0.65367,2446.7,2446.5,3.61401]
[1750798426932,0.65368,2446.6,2446.5,2.9603]
[1750798427120,0.65371,2446.5,2446.4,3.2078]
[1750798428019,6.621,2446.7,2446.4,3.2078]
[1750798428020,0.65369,2446.6,2446.4,3.2078]
[1750798428230,7.27466,2446.7,2446.5,0.65369]
[1750798428529,0.65368,2446.6,2446.5,1.4089]
[1750798429624,0.65368,2446.6,2446.5,2.06261]
[1750798430029,0.65368,2446.6,2446.5,1.4089]
[1750798430331,0.65368,2446.6,2446.5,2.06261]
[1750798430825,0.65371,2446.5,2446.4,3.2078]
[1750798431020,0.65369,2446.6,2446.5,0.6537]
[1750798431422,0.65369,2446.6,2446.5,1.9832]
[1750798431622,0.65369,2446.6,2446.5,1.3295]
[1750798431818,7.27469,2446.6,2446.5,1.3295]
[1750798432622,0.65379,2446.3,2446.1,4.57571]
[1750798432822,0.65375,2446.4,2446.3,0.65375]
[1750798433023,0.65375,2446.4,2446.3,0.73375]
[1750798434130,6.621,2446.6,2446.3,0.73375]
[1750798434531,0.65374,2446.4,2446.3,0.08]
[1750798434829,0.65379,2446.2,2446.1,3.2078]
[1750798435028,0.65378,2446.3,2446.1,4.55162]
[1750798435228,0.65378,2446.3,2446.2,0.65379]
[1750798435420,0.65378,2446.3,2446.2,2.08759]
[1750798435936,3.2078,2446.6,2446.2,7.4638]
[1750798436132,3.2078,2446.6,2446.3,2.78646]
[1750798436133,0.65375,2446.4,2446.3,2.78646]
[1750798437439,0.65375,2446.4,2446.3,2.1327]
[1750798438635,0.65375,2446.4,2446.3,2.78646]
[1750798439839,0.65375,2446.4,2446.3,2.1327]
[1750798440743,0.65375,2446.4,2446.3,2.78646]
[1750798440942,0.65375,2446.4,2446.3,2.1327]
[1750798441834,0.65375,2446.4,2446.3,2.78646]
[1750798442837,0.65375,2446.4,2446.3,2.1327]
[1750798443035,0.65375,2446.4,2446.3,2.78646]
[1750798443932,6.583,2446.5,2446.3,2.78646]
[1750798443933,7.23674,2446.5,2446.4,0.65374]
[1750798444144,0.65374,2446.4,2446.3,1.35265]
[1750798445147,0.65374,2446.4,2446.3,4.38410031]
[1750798445738,0.65373,2446.5,2446.4,0.65372]
[1750798447541,0.65374,2446.4,2446.3,0.6989]
[1750798447741,33.3861,2446.8,2446.1,3.8616]
[1750798447742,0.65379,2446.2,2446.1,3.8616]
[1750798447944,31.752,2446.5,2446.4,0.65372]
[1750798448138,32.40573,2446.5,2446.4,0.65372]
[1750798448747,32.40573,2446.5,2446.4,1.31562]
[1750798448945,3.8615,2446.6,2446.4,1.31561]
[1750798449248,0.65365,2446.8,2446.6,0.65367]
[1750798449549,0.65368,2446.6,2446.5,7.58764031]
[1750798450249,9.7928,2446.6,2446.1,0.65381]
[1750798450453,0.65381,2446.2,2446.1,2.34001]
[1750798450635,0.65375,2446.4,2446.3,0.65375]
[1750798451143,0.65376,2446.3,2446.2,3.68522031]
[1750798451339,0.65376,2446.3,2446.2,4.01522031]
[1750798451743,0.65376,2446.3,2446.2,0.33]
[1750798452848,0.65374,2446.4,2446.3,0.65374]
[1750798453038,0.65374,2446.4,2446.3,2.97917836]
[1750798453444,0.65373,2446.5,2446.4,0.65373]
[1750798453646,0.65374,2446.4,2446.3,5.53323836]
[1750798453846,0.65374,2446.4,2446.3,3.2078]
[1750798454046,1.63428,2446.5,2446.0,4.82083836]
[1750798454246,0.65382,2446.1,2446.0,4.82083836]
[1750798454451,0.65382,2446.1,2446.0,6.72083836]
[1750798454647,0.65382,2446.1,2446.0,7.37467836]
[1750798455142,0.6538,2446.2,2446.1,0.65379]
[1750798455346,0.6538,2446.2,2446.1,3.15775432]
[1750798456441,0.6538,2446.2,2446.1,4.57524031]
[1750798457347,0.65378,2446.3,2446.2,0.65377]
[1750798457550,0.65376,2446.4,2446.3,0.65375]
[1750798458242,0.65373,2446.5,2446.4,0.65374]
[1750798458839,0.65373,2446.5,2446.4,2.03444]
[1750798459035,0.65373,2446.5,2446.4,1.3807]
[1750798459238,6.585,2446.6,2446.4,1.3807]
[1750798459446,6.585,2446.6,2446.5,0.65371]
[1750798459648,7.23868,2446.6,2446.5,0.65371]
[1750798459855,0.65371,2446.5,2446.4,2.03443]
[1750798461548,0.65371,2446.5,2446.4,3.64943696]
[1750798461744,0.65371,2446.5,2446.4,1.61500696]
[1750798461949,0.65372,2446.5,2446.4,0.65372]
[1750798462353,0.65372,2446.5,2446.4,2.08562]
[1750798464360,0.65372,2446.5,2446.4,1.4319]
[1750798464854,0.65371,2446.5,2446.4,2.08564]
[1750798465157,0.65371,2446.5,2446.4,5.29344]
[1750798465657,0.65371,2446.5,2446.3,1.61500696]
[1750798465658,0.65376,2446.4,2446.3,1.61500696]
[1750798465857,0.65376,2446.4,2446.3,2.95710696]
[1750798466249,0.65376,2446.4,2446.3,3.61086696]
[1750798466653,31.753,2446.7,2446.3,2.95710696]
[1750798466865,0.65374,2446.4,2446.3,3.61084696]
[1750798467566,0.65374,2446.4,2446.3,6.81864696]
[1750798467860,0.65373,2446.5,2446.4,0.65373]
[1750798468060,0.65373,2446.5,2446.4,2.02493]
[1750798468758,0.65374,2446.4,2446.3,3.8836]
[1750798470262,0.65374,2446.4,2446.3,5.2548]
[1750798471466,0.65374,2446.4,2446.3,3.2078]
[1750798471763,0.65379,2446.3,2446.2,0.65378]
[1750798471955,0.65379,2446.3,2446.2,1.02378]
[1750798472862,0.7197,2446.5,2446.2,0.37]
[1750798473060,1.37343,2446.5,2446.4,0.65374]
[1750798473259,0.65373,2446.5,2446.4,0.65374]
[1750798473558,0.65373,2446.5,2446.4,2.70404]
[1750798473762,0.6537,2446.6,2446.5,0.6537]
[1750798473963,0.6537,2446.6,2446.5,2.0196]
[1750798474665,7.22666,2446.7,2446.6,0.65368]
[1750798474860,32.39366,2446.7,2446.6,0.65368]
[1750798475057,0.65365,2446.8,2446.7,0.65364]
[1750798475370,29.02841,2446.9,2446.8,0.65363]
[1750798475659,0.65363,2446.8,2446.7,0.65364]
[1750798476560,0.65366,2446.7,2446.6,1.33256]
[1750798477864,0.65371,2446.5,2446.4,0.7154]
[1750798478164,0.65371,2446.5,2446.4,1.5154]
[1750798478667,0.65371,2446.5,2446.4,3.13158395]
[1750798479159,3.2078,2446.9,2446.4,1.5154]
[1750798479368,0.65367,2446.7,2446.6,0.65367]
[1750798479556,0.65365,2446.8,2446.7,0.65366]
[1750798479756,25.81965,2446.8,2446.7,0.65366]
[1750798479966,0.65366,2446.7,2446.6,2.26976764]
[1750798480170,25.81965,2446.8,2446.7,0.65366]
[1750798481263,0.65365,2446.8,2446.7,0.65366]